{"text_format":"3","workbook":"xlsx","n_sheets":4,"sheets":["Resumo","Ativos","Passivos","Categorias"],"not_rendered":{"defined_names":10},"read":"whole","date_system":"1900"}

{"sheet":"Resumo","index":0,"n_rows":12,"n_cols":4,"rows_kept":12}
[null,"Balancete"]
[null,null,{"$f":"\"FY-\"&YEAR(TODAY())-1","v":"FY-2022"},{"$f":"\"FY-\"&YEAR(TODAY())","v":"FY-2023"}]
[null,"Tipo de ativo","Ano anterior","Ano atual"]
[null,"Ativos circulantes",{"$f":"SUMIFS(Ativos[Ano anterior],Ativos[Tipo de ativo],Painel[[#This Row],[Tipo de ativo]])+SUMIFS(Passivos[Ano anterior],Passivos[Tipo de passivo],Painel[[#This Row],[Tipo de ativo]])","v":600},{"$f":"SUMIFS(Ativos[Ano atual],Ativos[Tipo de ativo],Painel[[#This Row],[Tipo de ativo]])+SUMIFS(Passivos[Ano atual],Passivos[Tipo de passivo],Painel[[#This Row],[Tipo de ativo]])","v":600}]
[null,"Ativos fixos",{"$f":"SUMIFS(Ativos[Ano anterior],Ativos[Tipo de ativo],Painel[[#This Row],[Tipo de ativo]])+SUMIFS(Passivos[Ano anterior],Passivos[Tipo de passivo],Painel[[#This Row],[Tipo de ativo]])","v":{"v":-100,"d":"-100 "}},{"$f":"SUMIFS(Ativos[Ano atual],Ativos[Tipo de ativo],Painel[[#This Row],[Tipo de ativo]])+SUMIFS(Passivos[Ano atual],Passivos[Tipo de passivo],Painel[[#This Row],[Tipo de ativo]])","v":{"v":-85,"d":"-85 "}}]
[null,"Outros ativos",{"$f":"SUMIFS(Ativos[Ano anterior],Ativos[Tipo de ativo],Painel[[#This Row],[Tipo de ativo]])+SUMIFS(Passivos[Ano anterior],Passivos[Tipo de passivo],Painel[[#This Row],[Tipo de ativo]])","v":0},{"$f":"SUMIFS(Ativos[Ano atual],Ativos[Tipo de ativo],Painel[[#This Row],[Tipo de ativo]])+SUMIFS(Passivos[Ano atual],Passivos[Tipo de passivo],Painel[[#This Row],[Tipo de ativo]])","v":0}]
[null,"Passivos circulantes",{"$f":"SUMIFS(Ativos[Ano anterior],Ativos[Tipo de ativo],Painel[[#This Row],[Tipo de ativo]])+SUMIFS(Passivos[Ano anterior],Passivos[Tipo de passivo],Painel[[#This Row],[Tipo de ativo]])","v":500},{"$f":"SUMIFS(Ativos[Ano atual],Ativos[Tipo de ativo],Painel[[#This Row],[Tipo de ativo]])+SUMIFS(Passivos[Ano atual],Passivos[Tipo de passivo],Painel[[#This Row],[Tipo de ativo]])","v":350}]
[null,"Passivos a longo prazo",{"$f":"SUMIFS(Ativos[Ano anterior],Ativos[Tipo de ativo],Painel[[#This Row],[Tipo de ativo]])+SUMIFS(Passivos[Ano anterior],Passivos[Tipo de passivo],Painel[[#This Row],[Tipo de ativo]])","v":0},{"$f":"SUMIFS(Ativos[Ano atual],Ativos[Tipo de ativo],Painel[[#This Row],[Tipo de ativo]])+SUMIFS(Passivos[Ano atual],Passivos[Tipo de passivo],Painel[[#This Row],[Tipo de ativo]])","v":0}]
[null,"Capital próprio",{"$f":"SUMIFS(Ativos[Ano anterior],Ativos[Tipo de ativo],Painel[[#This Row],[Tipo de ativo]])+SUMIFS(Passivos[Ano anterior],Passivos[Tipo de passivo],Painel[[#This Row],[Tipo de ativo]])","v":0},{"$f":"SUMIFS(Ativos[Ano atual],Ativos[Tipo de ativo],Painel[[#This Row],[Tipo de ativo]])+SUMIFS(Passivos[Ano atual],Passivos[Tipo de passivo],Painel[[#This Row],[Tipo de ativo]])","v":350}]
[null,"Total de ativos",{"$f":"Ativos[[#Totals],[Ano anterior]]","v":500},{"$f":"Ativos[[#Totals],[Ano atual]]","v":515}]
[null,"Despesas totais e patrimônio líquido",{"$f":"Passivos[[#Totals],[Ano anterior]]","v":500},{"$f":"Passivos[[#Totals],[Ano atual]]","v":700}]
[null,"Saldo",{"$f":"C10-C11","v":0},{"$f":"D10-D11","v":{"v":-185,"d":"-185 "}}]

{"sheet":"Ativos","index":1,"n_rows":14,"n_cols":5,"rows_kept":14}
[null,"Ativos"]
[{"$nulls":3},{"$f":"AF_ANO","v":"FY-2022"},{"$f":"AF_ANO_2","v":"FY-2023"}]
[null,"Tipo de ativo","Descrição","Ano anterior","Ano atual"]
[null,"Ativos circulantes","Dinheiro",600,600]
[null,"Ativos circulantes","Investimentos"]
[null,"Ativos circulantes","Inventários"]
[null,"Ativos circulantes","Contas a receber"]
[null,"Ativos circulantes","Despesas pré-pagas"]
[null,"Ativos fixos","Imobilizado"]
[null,"Ativos fixos","Benfeitorias em propriedade arrendada"]
[null,"Ativos fixos","Ações e outros investimentos"]
[null,"Ativos fixos","Dedução da depreciação acumulada (valor negativo)",{"v":-100,"d":"-100 "},{"v":-85,"d":"-85 "}]
[null,"Outros ativos","Donativo"]
[null,"Total de ativos",null,{"$f":"SUBTOTAL(109,Ativos[Ano anterior])","v":500},{"$f":"SUBTOTAL(109,Ativos[Ano atual])","v":515}]

{"sheet":"Passivos","index":2,"n_rows":12,"n_cols":5,"rows_kept":12}
[null,"Passivos"]
[{"$nulls":3},{"$f":"AF_ANO","v":"FY-2022"},{"$f":"AF_ANO_2","v":"FY-2023"}]
[null,"Tipo de passivo","Descrição","Ano anterior","Ano atual"]
[null,"Passivos circulantes","Contas a pagar",null,350]
[null,"Passivos circulantes","Aumento de salários"]
[null,"Passivos circulantes","Aumento da remuneração",500]
[null,"Passivos circulantes","Impostos sobre os rendimentos"]
[null,"Passivos circulantes","Receita não auferida"]
[null,"Passivos a longo prazo","Hipoteca a pagar"]
[null,"Capital próprio","Capital de investimento",null,350]
[null,"Capital próprio","Lucros retidos acumulados"]
[null,"Despesas totais e patrimônio líquido",null,{"$f":"SUBTOTAL(109,Passivos[Ano anterior])","v":500},{"$f":"SUBTOTAL(109,Passivos[Ano atual])","v":700}]

{"sheet":"Categorias","index":3,"n_rows":9,"n_cols":2,"rows_kept":9}
[null,"Categorias"]
[]
[null,"Categorias"]
[null,"Ativos circulantes"]
[null,"Ativos fixos"]
[null,"Outros ativos"]
[null,"Passivos circulantes"]
[null,"Passivos a longo prazo"]
[null,"Capital próprio"]